bitfinex-derivatives/quotes_BNBF0:USTF0_20230831
["timestamp","ask_amount","ask_price","bid_price","bid_amount"]
[1693500305926,0.83919454,219.14,218.62,0.19152562]
[1693500306129,0.07271871,219.15,218.63,0.19152562]
[1693500306328,0.83921099,219.14,218.64,0.19152562]
[1693500306528,0.83921099,219.14,218.55,0.14863039]
[1693500306529,0.83921099,219.14,218.65,0.19152562]
[1693500306829,0.83921099,219.14,218.62,0.07431519]
[1693500306830,0.83921099,219.14,218.63,0.19152562]
[1693500307027,0.83921099,219.15,218.66,0.19152562]
[1693500307228,0.83921099,219.15,218.67,0.19152562]
[1693500307522,0.83921099,219.15,218.68,0.19152562]
[1693500307727,0.83921099,219.15,218.6,0.19152562]
[1693500307929,0.83921099,219.15,218.61,0.19152562]
[1693500308226,0.9119297,219.15,218.6,0.19152562]
[1693500308429,0.83921099,219.14,218.61,0.19152562]
[1693500308733,0.83921099,219.14,218.62,0.19152562]
[1693500308929,0.83921099,219.14,218.6,0.26584081]
[1693500309130,0.83921099,219.15,218.61,0.19152562]
[1693500309424,0.83921099,219.14,218.61,0.19152562]
[1693500309630,0.83921099,219.13,218.62,0.19152562]
[1693500309931,0.83921099,219.13,218.6,0.07431519]
[1693500309932,0.07271871,219.17,218.63,0.19152562]
[1693500310225,0.83919791,219.16,218.64,0.19152562]
[1693500310432,0.83919791,219.16,218.65,0.19152562]
[1693500310623,0.83919791,219.16,218.61,0.19152562]
[1693500310828,0.83919791,219.16,218.66,0.19152562]
[1693500311024,0.83919791,219.17,218.67,0.19152562]
[1693500311233,0.83919791,219.16,218.61,0.19152562]
[1693500311429,0.83919791,219.17,218.61,0.26584081]
[1693500311628,0.07271871,219.22,218.64,0.07431519]
[1693500311827,0.83891072,219.21,218.66,0.07431519]
[1693500312130,0.83891072,219.2,218.67,0.19152562]
[1693500312330,0.83891072,219.19,218.67,0.19152562]
[1693500312524,0.83891072,219.18,218.67,0.19152562]
[1693500312727,0.83891072,219.22,218.68,0.19152562]
[1693500312927,0.83896756,219.21,218.66,0.19152562]
[1693500313133,0.83896756,219.22,218.67,0.19152562]
[1693500313332,0.83896756,219.21,218.68,0.19152562]
[1693500313530,0.91168627,219.21,218.69,0.19152562]
[1693500313831,0.07271871,219.16,218.7,0.19152562]
[1693500314033,0.83896756,219.15,218.71,0.19152562]
[1693500314329,0.83896756,219.15,218.72,0.19152562]
[1693500314530,0.83896756,219.15,218.73,0.19152562]
[1693500314726,0.83896756,219.15,218.74,0.19152562]
[1693500314934,0.83896756,219.15,218.75,0.19152562]
[1693500315124,0.83896756,219.15,218.76,0.19152562]
[1693500315330,0.83896756,219.15,218.77,0.19152562]
[1693500315526,0.91168627,219.15,218.61,0.19152562]
[1693500315733,0.83896756,219.14,218.62,0.19222113]
[1693500315930,0.83896756,219.14,218.6,0.19222113]
[1693500316130,0.83896756,219.14,218.61,0.19222113]
[1693500316330,0.91168627,219.14,218.61,0.26653632]
[1693500316526,0.83896756,219.13,218.62,0.19222113]
[1693500316830,0.07271871,219.15,218.62,0.26653632]
[1693500317031,0.83918023,219.14,218.63,0.19222113]
[1693500317235,0.83918023,219.15,218.63,0.19222113]
[1693500317429,0.83918023,219.14,218.63,0.19222113]
[1693500317625,0.83918023,219.15,218.63,0.19222113]
[1693500317835,0.83918023,219.14,218.63,0.19222113]
[1693500318232,0.83918023,219.13,218.63,0.26653632]
[1693500318433,0.07271871,219.2,218.68,0.07431519]
[1693500318637,0.83892996,219.19,218.69,0.26653632]
[1693500318832,0.07271871,219.21,218.7,0.19222113]
[1693500318833,0.83892996,219.2,218.7,0.19222113]
[1693500319032,0.83892729,219.19,218.7,0.26653632]
[1693500319330,0.07271871,219.22,218.71,0.19222113]
[1693500319532,0.91164301,219.21,218.71,0.19222113]
[1693500319725,0.8389243,219.2,218.7,0.19222113]
[1693500319926,0.8389243,219.2,218.71,0.19222113]
[1693500320133,0.91164301,219.2,218.7,0.26653632]
[1693500320433,0.8389243,219.19,218.71,0.26653632]
[1693500320633,0.07271871,219.2,218.72,0.19222113]
[1693500321231,0.83894752,219.19,218.72,0.19222113]
[1693500321426,0.83894752,219.19,218.7,0.07436661]
[1693500321427,0.07279785,219.19,218.7,0.07436661]
[1693500321729,0.07279785,219.2,218.71,0.26658774]
[1693500321925,0.83894287,219.19,218.71,0.26658774]
[1693500322130,0.83894287,219.19,218.72,0.19222113]
[1693500322332,0.91174072,219.19,218.72,0.26658774]
[1693500322528,0.07279785,219.19,218.73,0.19222113]
[1693500323232,0.14559571,219.21,218.73,0.19222113]
[1693500323233,0.07279785,219.18,218.73,0.19222113]
[1693500323735,0.07279785,219.19,218.73,0.19222113]
[1693500324135,0.07279785,219.17,218.74,0.07436661]
[1693500324333,0.07279785,219.17,218.75,0.19222113]
[1693500324735,0.07279785,219.16,218.75,0.19222113]
[1693500324935,0.07279785,219.16,218.74,0.19222113]
[1693500325137,0.07279785,219.16,218.75,0.19222113]
[1693500325438,0.07279785,219.16,218.73,0.07436661]
[1693500325439,0.07279785,219.16,218.76,0.19222113]
[1693500325637,0.07279785,219.16,218.74,0.19222113]
[1693500325837,0.07279785,219.16,218.75,0.19222113]
[1693500326037,0.07279785,219.16,218.76,0.19222113]
[1693500326240,0.07279785,219.16,218.77,0.19222113]
[1693500326537,0.07279785,219.16,218.78,0.19222113]
[1693500326731,0.07279785,219.16,218.79,0.19222113]
[1693500326938,0.07279785,219.16,218.8,0.19222113]
[1693500327137,0.07279785,219.16,218.74,0.19222113]
[1693500327337,0.07279785,219.16,218.75,0.19222113]
[1693500327536,0.07279785,219.17,218.75,0.19222113]
[1693500327937,0.07279785,219.17,218.75,0.26658774]
[1693500328139,0.07279785,219.17,218.76,0.19222113]
[1693500329340,0.07279785,219.15,218.76,0.19222113]
[1693500329644,0.07279785,219.15,218.77,0.19222113]
[1693500329842,0.07279785,219.16,218.78,0.19222113]
[1693500330041,0.07279785,219.16,218.79,0.19222113]
[1693500330237,0.07279785,219.16,218.75,0.19222113]
[1693500330542,0.07279785,219.15,218.76,0.19222113]
[1693500330841,0.07279785,219.15,218.77,0.19222113]
[1693500331042,0.07279785,219.15,218.78,0.19222113]
[1693500331242,0.07279785,219.15,218.75,0.26658774]
[1693500331442,0.07279785,219.15,218.76,0.19222113]
[1693500331847,0.07279785,219.15,218.75,0.19222113]
[1693500332047,0.07279785,219.15,218.76,0.19222113]
[1693500332247,0.07279785,219.15,218.77,0.19222113]
[1693500332546,0.07279785,219.15,218.78,0.19222113]
[1693500332748,0.07279785,219.16,218.79,0.19222113]
[1693500332948,0.07279785,219.16,218.8,0.19222113]
[1693500333149,0.07279785,219.17,218.78,0.19222113]
[1693500333345,0.07279785,219.17,218.79,0.19222113]
[1693500333546,0.07279785,219.17,218.78,0.19222113]
[1693500333745,0.07279785,219.17,218.79,0.19222113]
[1693500333945,0.07279785,219.17,218.78,0.19222113]
[1693500334247,0.07279785,219.17,218.79,0.19222113]
[1693500334447,0.07279785,219.17,218.78,0.19222113]
[1693500334647,0.07279785,219.17,218.79,0.19222113]
[1693500334843,0.07279785,219.17,218.8,0.19222113]
[1693500335045,0.07279785,219.17,218.81,0.19222113]
[1693500335247,0.07279785,219.17,218.82,0.19222113]
[1693500335444,0.07279785,219.17,218.83,0.19222113]
[1693500335644,0.07279785,219.17,218.84,0.19222113]
[1693500335843,0.07279785,219.17,218.85,0.19222113]
[1693500336043,0.07279785,219.17,218.86,0.19222113]
[1693500336243,0.07279785,219.18,218.78,0.19222113]
[1693500336447,0.07279785,219.18,218.79,0.19222113]
[1693500336748,0.07279785,219.18,218.8,0.19222113]
[1693500336948,0.07279785,219.18,218.78,0.19222113]
[1693500337144,0.07279785,219.18,218.79,0.19222113]
[1693500337349,0.07279785,219.18,218.78,0.19222113]
[1693500337549,0.07279785,219.18,218.79,0.19222113]
[1693500337752,0.07279785,219.18,218.8,0.19222113]
[1693500338050,0.07279785,219.18,218.81,0.19222113]
[1693500338252,0.07279785,219.18,218.78,0.19222113]
[1693500338550,0.07279785,219.18,218.79,0.19222113]
[1693500338948,0.07279785,219.18,218.8,0.19222113]
[1693500339250,0.07279785,219.2,218.81,0.19222113]
[1693500339453,0.07279785,219.24,218.83,0.07436661]
[1693500339646,0.07279785,219.24,218.84,0.19222113]
[1693500341251,0.07279785,219.26,218.84,0.19222113]
[1693500341450,0.07279785,219.26,218.83,0.19222113]
[1693500341649,0.07279785,219.26,218.84,0.19222113]
[1693500341854,0.07279785,219.26,218.83,0.26658774]
[1693500342055,0.07279785,219.26,218.84,0.19222113]
[1693500342355,0.07279785,219.26,218.84,0.26658774]
[1693500342548,0.07279785,219.26,218.85,0.19222113]
[1693500343155,0.07279785,219.27,218.85,0.19222113]
[1693500343355,0.07279785,219.27,218.84,0.19222113]
[1693500343554,0.07279785,219.27,218.85,0.19222113]
[1693500343855,0.07279785,219.27,218.86,0.19222113]
[1693500344050,0.07279785,219.28,218.84,0.19222113]
[1693500344256,0.07279785,219.28,218.85,0.19222113]
[1693500345153,0.07279785,219.3,218.85,0.19222113]
[1693500345457,0.07279785,219.3,218.86,0.19222113]
[1693500345653,0.07279785,219.35,218.88,0.07436661]
[1693500345849,0.07279785,219.35,218.89,0.19222113]
[1693500346254,0.07279785,219.35,218.89,0.26658774]
[1693500346455,0.07279785,219.35,218.9,0.19222113]
[1693500347358,0.07279785,219.37,218.9,0.19222113]
[1693500347556,0.83832024,219.36,218.87,0.19222113]
[1693500347755,0.83832024,219.36,218.88,0.19222113]
[1693500347962,0.83832024,219.36,218.87,0.19222113]
[1693500348261,0.83832024,219.36,218.88,0.19222113]
[1693500348453,0.83832024,219.36,218.85,0.19222113]
[1693500348653,0.83832024,219.35,218.85,0.19222113]
[1693500348955,0.07279785,219.39,218.85,0.19222113]
[1693500349157,0.83831777,219.38,218.85,0.19222113]
[1693500349654,0.83831777,219.37,218.83,0.19222113]
[1693500349958,0.83831777,219.39,218.84,0.19222113]
[1693500350157,0.83831777,219.38,218.83,0.26658774]
[1693500350358,0.83831777,219.39,218.84,0.19222113]
[1693500350559,0.83831777,219.38,218.84,0.19222113]
[1693500350754,0.83831777,219.39,218.84,0.19222113]
[1693500350965,0.83831777,219.38,218.84,0.19222113]
[1693500351158,0.83831777,219.39,218.84,0.19222113]
[1693500351360,0.83831777,219.38,218.84,0.19222113]
[1693500351559,0.83831777,219.39,218.84,0.19222113]
[1693500351754,0.83831777,219.38,218.84,0.19222113]
[1693500351956,0.83831777,219.39,218.84,0.19222113]
[1693500352158,0.83831777,219.38,218.84,0.19222113]
[1693500352354,0.83831777,219.37,218.85,0.19222113]
[1693500352553,0.83831777,219.36,218.86,0.19222113]
[1693500352758,0.83831777,219.35,218.87,0.19222113]
[1693500353062,0.07279785,219.41,218.88,0.19222113]
[1693500353263,0.91111891,219.4,218.89,0.19222113]
[1693500353562,0.83832106,219.39,218.9,0.19222113]
[1693500353760,0.83832106,219.39,218.84,0.19222113]
[1693500353960,0.83832106,219.39,218.85,0.19222113]
[1693500354161,0.83832106,219.39,218.77,0.14873323]
[1693500354162,0.83832106,219.39,218.84,0.26658774]
[1693500354363,0.83832106,219.41,218.85,0.19222113]
[1693500354661,0.83832106,219.4,218.85,0.19222113]
[1693500354861,0.83832106,219.42,218.85,0.19222113]
[1693500355061,0.83832106,219.41,218.85,0.19222113]
[1693500355260,0.83832106,219.42,218.85,0.19222113]
[1693500355456,0.83832106,219.41,218.84,0.19222113]
[1693500355662,0.83832106,219.43,218.85,0.19222113]
[1693500355861,0.83832106,219.42,218.84,0.19222113]
[1693500356063,0.83832106,219.43,218.85,0.19222113]
[1693500356262,0.83832106,219.42,218.84,0.26658774]
[1693500356462,0.83832106,219.43,218.85,0.19222113]
[1693500356663,0.83832106,219.42,218.85,0.19222113]
[1693500356858,0.83832106,219.43,218.85,0.19222113]
[1693500357061,0.83832106,219.42,218.85,0.19222113]
[1693500357261,0.83832106,219.43,218.85,0.19222113]
[1693500357462,0.83832106,219.42,218.84,0.19222113]
[1693500357664,0.83832106,219.41,218.84,0.19222113]
[1693500357865,0.83832106,219.4,218.84,0.19222113]
[1693500358064,0.83832106,219.39,218.84,0.19222113]
[1693500358265,0.83832106,219.44,218.84,0.19222113]
[1693500358567,0.83832106,219.43,218.84,0.19222113]
[1693500358865,0.83832106,219.42,218.84,0.26658774]
[1693500359065,0.83832106,219.45,218.85,0.19222113]
[1693500359264,0.83832106,219.44,218.85,0.19222113]
[1693500359465,0.83832106,219.46,218.85,0.19222113]
[1693500359665,0.83832106,219.45,218.85,0.19222113]
[1693500359866,0.83832106,219.46,218.85,0.19222113]
[1693500360061,0.83832106,219.45,218.85,0.19222113]
[1693500360268,0.83832106,219.44,218.85,0.19222113]
[1693500360467,0.83832106,219.43,218.85,0.19222113]
[1693500360667,0.83832106,219.46,218.89,0.07436661]
[1693500360866,0.83794649,219.45,218.9,0.19222113]
[1693500361068,0.91074434,219.52,218.9,0.19222113]
[1693500361267,0.07279785,219.47,218.9,0.19222113]
[1693500361469,0.07279785,219.45,218.9,0.19222113]
[1693500361664,0.07279785,219.45,218.68,0.49577744]
[1693500361665,0.83794649,219.44,218.91,0.19222113]
[1693500361865,0.83794649,219.44,218.84,0.19222113]
[1693500362371,0.83794649,219.44,218.85,0.19222113]
[1693500362568,0.83794649,219.44,218.84,0.19222113]
[1693500362771,0.83794649,219.44,218.85,0.19222113]
[1693500362969,0.83794649,219.44,218.84,0.19222113]
[1693500363170,0.83794649,219.44,218.85,0.19222113]
[1693500363472,0.91074434,219.44,218.86,0.19222113]
[1693500363673,0.83794649,219.43,218.87,0.19222113]
[1693500363967,0.83794649,219.43,218.82,0.07436661]
[1693500363968,0.83794649,219.43,218.88,0.19222113]
[1693500364171,0.91074434,219.43,218.83,0.19222113]
[1693500364374,0.91074434,219.43,218.82,0.07436661]
[1693500364375,0.83794649,219.42,218.84,0.19222113]
[1693500364573,0.83794649,219.42,218.83,0.19222113]
[1693500364876,0.83794649,219.42,218.84,0.19222113]
[1693500365173,0.83794649,219.41,218.84,0.26658774]
[1693500365373,0.83794649,219.4,218.85,0.19222113]
[1693500365572,0.83794649,219.39,218.85,0.19222113]
[1693500365767,0.83794649,219.44,218.84,0.19222113]
[1693500365969,0.83794649,219.43,218.85,0.19222113]
[1693500366169,0.91074434,219.44,218.85,0.19222113]
[1693500366369,0.91074434,219.43,218.86,0.19222113]
[1693500366569,0.83794649,219.42,218.87,0.19222113]
[1693500366774,0.83794649,219.42,218.88,0.19222113]
[1693500366974,0.83794649,219.42,218.89,0.19222113]
[1693500367175,0.83794649,219.42,218.84,0.26658774]
[1693500367376,0.83794649,219.42,218.44,2.4788872]
[1693500367377,0.83794649,219.41,218.85,0.26658774]
[1693500367577,0.83794649,219.41,218.86,0.19222113]
[1693500368079,0.91074434,219.41,218.85,0.19222113]
[1693500368376,0.83794649,219.4,218.86,0.19222113]
[1693500368577,0.83794649,219.4,218.87,0.19222113]
[1693500368771,0.83794649,219.39,218.88,0.19222113]
[1693500368969,0.83794649,219.41,218.86,0.19222113]
[1693500369173,0.83794649,219.4,218.87,0.19222113]
[1693500369373,0.83794649,219.39,218.86,0.26658774]
[1693500369678,0.83794649,219.38,218.87,0.19222113]
[1693500369875,0.07279785,219.41,218.87,0.19222113]
[1693500370075,0.83824492,219.4,218.87,0.19222113]
[1693500370272,0.91104277,219.4,218.87,0.26658774]
[1693500370480,0.83824492,219.39,218.88,0.19222113]
[1693500371277,0.91104277,219.39,218.89,0.07436661]
[1693500371474,0.07279785,219.39,218.9,0.26658774]
[1693500371669,0.07279785,219.4,218.91,0.19222113]
[1693500371869,0.91099148,219.39,218.91,0.19222113]
[1693500372072,0.83819363,219.38,218.91,0.19222113]
[1693500372276,0.83819363,219.38,218.92,0.19222113]
[1693500372476,0.83819363,219.38,218.93,0.19222113]
[1693500372676,0.83819363,219.38,218.9,0.26658774]
[1693500372877,0.83819363,219.38,218.91,0.19222113]
[1693500373080,0.07279785,219.39,218.91,0.19222113]
[1693500373278,0.07279785,219.37,218.92,0.07436661]
[1693500373577,0.07279785,219.37,218.93,0.19222113]
[1693500374376,0.07279785,219.33,218.94,0.07436661]
[1693500374578,0.07279785,219.33,218.95,0.19222113]
[1693500375178,0.07279785,219.32,218.95,0.19222113]
[1693500375374,0.07279785,219.32,218.94,0.19222113]
[1693500375575,0.07279785,219.31,218.95,0.19222113]
[1693500375779,0.07279785,219.31,218.96,0.19222113]
[1693500375980,0.07279785,219.31,218.97,0.19222113]
[1693500376176,0.07279785,219.29,218.94,0.07436661]
[1693500376382,0.07279785,219.29,218.95,0.19222113]
[1693500377176,0.07279785,219.28,218.96,0.19222113]
[1693500377377,0.07279785,219.28,218.97,0.19222113]
[1693500377582,0.07279785,219.28,218.98,0.19222113]
[1693500377777,0.07279785,219.29,218.99,0.19222113]
[1693500377979,0.07279785,219.28,218.94,0.19222113]
[1693500378180,0.07279785,219.22,218.95,0.19162476]
[1693500378376,0.07279785,219.22,218.66,0.99155488]
[1693500378377,0.07279785,219.22,218.91,0.19162476]
[1693500378581,0.07279785,219.22,218.92,0.19164237]
[1693500378883,0.07279785,219.22,218.93,0.19164237]
[1693500379085,0.07279785,219.22,218.88,0.19164237]
[1693500379382,0.07279785,219.22,218.89,0.19164237]
[1693500379583,0.07279785,219.22,218.9,0.19164237]
[1693500379783,0.07279785,219.22,218.88,0.19164237]
[1693500379984,0.07279785,219.21,218.89,0.19164237]
[1693500380285,0.07279785,219.22,218.9,0.19164237]
[1693500380585,0.07279785,219.21,218.91,0.19164237]
[1693500380784,0.07279785,219.21,218.86,0.19164237]
[1693500381985,0.07279785,219.2,218.86,0.19164237]
[1693500382185,0.07279785,219.2,218.85,0.19164237]
[1693500382484,0.07279785,219.2,218.84,0.07436661]
[1693500382485,0.07279785,219.17,218.86,0.19164237]
[1693500382686,0.07279785,219.16,218.78,0.19164237]
[1693500382884,0.07279785,219.16,218.76,0.07436661]
[1693500383180,0.07279785,219.15,218.79,0.19196364]
[1693500383385,0.07279785,219.16,218.8,0.19196364]
[1693500383580,0.07279785,219.16,218.76,0.19196364]
[1693500383778,0.07279785,219.16,218.77,0.19196364]
[1693500383982,0.07279785,219.16,218.78,0.19196364]
[1693500384178,0.07279785,219.16,218.79,0.19196364]
[1693500384388,0.07279785,219.2,218.76,0.19196364]
[1693500384686,0.07279785,219.14,218.77,0.19196364]
[1693500384881,0.83912413,219.13,218.66,0.19196364]
[1693500385082,0.91192198,219.13,218.66,0.19196364]
[1693500385383,0.07279785,219.05,218.66,0.19196364]
[1693500385583,0.07279785,219.03,218.65,0.19196364]
[1693500385783,0.83912413,219.04,218.65,0.19196364]
[1693500385977,0.83912413,219.04,218.45,0.49577744]
[1693500385978,0.83912413,219.04,218.67,0.19196364]
[1693500386185,0.07279785,219.09,218.67,0.19196364]
[1693500386381,0.83950038,219.08,218.66,0.19196364]
[1693500386583,0.83950038,219.08,218.67,0.19196364]
[1693500386884,0.91229823,219.07,218.67,0.19196364]
[1693500387085,0.91229823,219.07,218.16,0.99155488]
[1693500387086,0.07279785,219.05,218.46,0.19196364]
[1693500387282,0.07279785,219.03,218.46,0.19196364]
[1693500387479,0.83950038,219.02,218.47,0.19273494]
[1693500387787,0.83950038,219.02,218.48,0.19273494]
[1693500388085,0.83950038,219.02,218.38,0.26710155]
[1693500388281,0.07279785,219.13,218.43,0.07436661]
[1693500388483,0.07279785,219.13,218.37,0.14873323]
[1693500388484,0.83945262,219.12,218.49,0.19273494]
[1693500388691,0.83945262,219.2,218.44,0.19273494]
[1693500388986,0.83945262,219.19,218.5,0.19273494]
[1693500389182,0.91225047,219.23,218.51,0.19273494]
[1693500389379,0.83945262,219.23,218.51,0.19273494]
[1693500389584,0.83945262,219.18,218.51,0.19273494]
[1693500389881,0.83945262,219.18,218.52,0.19273494]
[1693500390086,0.83945262,219.22,218.49,0.19273494]
[1693500390488,0.83945262,219.21,218.53,0.19273494]
[1693500390688,0.83945262,219.27,218.5,0.19273494]
[1693500390987,0.83945262,219.2,218.51,0.19273494]
[1693500391188,0.83945262,219.19,218.42,0.19273494]
[1693500391487,0.83945262,219.18,218.43,0.19273494]
[1693500391688,0.83945262,219.27,218.41,0.19273494]
[1693500391890,0.83945262,219.26,218.41,0.19273494]
[1693500392081,0.83945262,219.28,218.46,0.07436661]
[1693500392283,0.83945262,219.27,218.47,0.26710155]
[1693500392591,0.83945262,219.26,218.49,0.07436661]
[1693500392789,0.83945262,219.38,218.55,0.07436661]
[1693500393088,0.83945262,219.37,218.56,0.19273494]
[1693500393388,0.83945262,219.36,218.56,0.19273494]
[1693500393783,0.83945262,219.35,218.56,0.19273494]
[1693500393983,0.91225047,219.44,218.56,0.19273494]
[1693500394187,0.91225047,219.43,218.55,0.19273494]
[1693500394488,0.07279785,219.38,218.56,0.19273494]
[1693500394688,0.91225047,219.37,218.51,0.19273494]
[1693500394883,0.83945262,219.36,218.52,0.19273494]
[1693500395090,0.83945262,219.36,218.53,0.19273494]
[1693500395393,0.07279785,219.35,218.5,0.19273494]
[1693500395583,0.83945262,219.34,218.51,0.19273494]
[1693500395989,0.83945262,219.34,218.52,0.19273494]
[1693500396190,0.83945262,219.34,218.49,0.07436661]
[1693500396391,0.91225047,219.36,218.53,0.19273494]
[1693500396585,0.91225047,219.35,218.54,0.19273494]
[1693500396790,0.83945262,219.34,218.49,0.19273494]
[1693500396986,0.91225047,219.34,218.5,0.19273494]
[1693500397189,0.83945262,219.33,218.48,0.19273494]
[1693500397485,0.07279785,219.27,218.49,0.19273494]
[1693500397790,0.83945262,219.26,218.41,0.19273494]
[1693500397991,0.83945262,219.26,218.5,0.19273494]
[1693500398192,0.83945262,219.27,218.51,0.19273494]
[1693500398493,0.83945262,219.27,218.52,0.19273494]
[1693500398686,0.83945262,219.27,218.42,0.26710155]
[1693500398889,0.97063812,219.38,218.43,0.19273494]
[1693500398890,0.83945262,219.26,218.43,0.19273494]
[1693500399090,0.83945262,219.3,218.43,0.19273494]
[1693500399291,0.83945262,219.29,218.43,0.19273494]
[1693500399486,0.83945262,219.3,218.43,0.19273494]
[1693500399691,0.07279785,219.31,218.43,0.26710155]
[1693500399692,0.83945262,219.29,218.43,0.26710155]
[1693500399890,0.83945262,219.3,218.44,0.19273494]
[1693500400190,0.83945262,219.3,218.43,0.19273494]
[1693500400396,0.83945262,219.3,218.44,0.19273494]
[1693500400796,0.83945262,219.3,218.43,0.19273494]
[1693500400998,0.07279785,219.29,218.44,0.19273494]
[1693500401201,0.83945262,219.28,218.42,0.19273494]
[1693500401496,0.83945262,219.27,218.43,0.19273494]
[1693500401698,0.83945262,219.26,218.43,0.19273494]
[1693500401896,0.83945262,219.25,218.43,0.19273494]
[1693500402098,0.83945262,219.24,218.44,0.19273494]
[1693500402290,0.83945262,219.23,218.45,0.19273494]
[1693500402492,0.83945262,219.27,218.41,0.19273494]
[1693500402697,0.83945262,219.26,218.42,0.19273494]
[1693500402896,0.97063812,219.36,218.25,0.49577744]
[1693500402897,0.91225047,219.27,218.41,0.19273494]
[1693500403098,0.83945262,219.25,218.42,0.19273494]
[1693500403300,0.83945262,219.24,218.4,0.19273494]
[1693500403500,0.83945262,219.25,218.41,0.19273494]
[1693500403799,0.83945262,219.24,218.42,0.19273494]
[1693500404001,0.07279785,219.26,218.43,0.19273494]
[1693500404002,0.83945262,219.23,218.43,0.19273494]
[1693500404206,0.83945262,219.25,218.4,0.19273494]
[1693500404502,0.07279785,219.2,218.41,0.19273494]
[1693500404799,0.91225047,219.19,218.42,0.19273494]
[1693500405001,0.83945262,219.18,218.3,0.19273494]
[1693500405402,0.07279785,219.17,218.3,0.19273494]
[1693500405602,0.83945262,219.16,218.3,0.19273494]
[1693500405799,0.07279785,219.13,218.3,0.19273494]
[1693500405998,0.07279785,219.11,218.26,0.19273494]
[1693500406200,0.83945262,219.1,218.27,0.19273494]
[1693500406401,0.83945262,219.11,218.28,0.19273494]
[1693500406603,0.83945262,219.1,218.21,0.19273494]
[1693500406798,0.83945262,219.1,218.29,0.19273494]
[1693500406999,0.07279785,219.13,218.19,0.07436661]
[1693500407299,0.07279785,219.07,218.2,0.1928631]
[1693500407597,0.07279785,219.07,218.21,0.1928631]
[1693500407598,0.07279785,219.05,218.21,0.1928631]
[1693500407796,0.07279785,219.02,218.21,0.1928631]
[1693500408000,0.07279785,218.96,218.21,0.1928631]
[1693500408205,0.83998234,218.95,218.15,0.1928631]
[1693500408701,0.83998234,218.94,218.15,0.1928631]
[1693500408897,0.83998234,219.12,218.11,0.07436661]
[1693500409197,0.83998234,219.12,218.07,0.1928631]
[1693500409198,0.07279785,219.11,218.13,0.07436661]
[1693500409396,0.83998234,219.1,218.16,0.1928631]
[1693500409597,0.83998234,219.1,218.19,0.07436661]
[1693500409802,0.83998234,219.16,218.21,0.07436661]
[1693500410197,0.83998234,219.16,218.15,0.14873323]
[1693500410198,0.83998234,219.09,218.22,0.07436661]
[1693500410407,0.83998234,219.09,218.22,0.26722971]
[1693500410599,0.83998234,219.15,218.23,0.07436661]
[1693500410799,0.83998234,219.15,218.28,0.07436661]
[1693500411005,0.83998234,219.08,218.28,0.07436661]
[1693500411304,0.83998234,219.14,218.32,0.07436661]
[1693500411499,0.83998234,219.14,218.33,0.1928631]
[1693500411698,0.83998234,219.07,218.33,0.1928631]
[1693500411902,0.07279785,219.12,218.24,0.1928631]
[1693500412208,0.83998234,219.11,218.24,0.1928631]
[1693500412403,0.83998234,219.11,217.95,0.99155488]
[1693500412404,0.07279785,219.08,218.34,0.1928631]
[1693500413005,0.83998234,219.11,218.34,0.1928631]
[1693500413404,0.83998234,219.07,218.35,0.1928631]
[1693500413604,0.83998234,219.15,218.35,0.1928631]
[1693500414199,0.83998234,219.15,218.25,0.07436661]
[1693500414404,0.83998234,219.15,218.24,0.07436661]
[1693500414705,0.83998234,219.16,218.25,0.07436661]
[1693500414905,0.83998234,219.16,218.24,0.07436661]
[1693500415105,0.83998234,219.16,218.25,0.07436661]
[1693500415307,0.07279785,219.17,218.27,0.07436661]
[1693500415805,0.07279785,219.17,218.26,0.07436661]
[1693500416004,0.07279785,219.18,218.28,0.07436661]
[1693500416506,0.07279785,219.17,218.27,0.07436661]
[1693500416904,0.07279785,219.17,218.13,0.49577744]
[1693500416905,0.07279785,219.17,218.28,0.07436661]
[1693500417107,0.07279785,219.16,218.27,0.07436661]
[1693500417307,0.07279785,219.13,218.28,0.07436661]
[1693500418107,0.07279785,219.14,218.29,0.07436661]
[1693500418308,0.97063812,219.21,218.29,0.07436661]
[1693500418309,0.07279785,219.13,218.29,0.07436661]
[1693500418710,0.07279785,219.13,218.3,0.07436661]
[1693500418910,0.07279785,219.13,218.29,0.07436661]
[1693500419114,0.07279785,219.08,218.24,0.07436661]
[1693500419312,0.07279785,219.07,218.25,0.07436661]
[1693500419512,0.07279785,219.05,218.23,0.07436661]
[1693500419909,0.07279785,219.04,218.23,0.07436661]
[1693500420210,0.07279785,219.04,217.86,1.02007018]
[1693500420211,0.83981314,219.04,218.27,0.07436661]
[1693500420610,0.83981314,219.04,218.33,0.07436661]
[1693500425011,0.83981314,219.04,218.34,0.19269919]
[1693500425315,0.21839356,219.17,218.34,0.19269919]
[1693500425817,0.83908453,219.16,218.34,0.19269919]
[1693500426411,0.83908453,219.16,218.44,0.14873323]
[1693500426618,0.83908453,219.16,218.5,0.07436661]
[1693500426813,0.83908453,219.16,218.51,0.07436661]
[1693500427015,0.83908453,219.33,218.51,0.07436661]
[1693500427315,0.83902378,219.32,218.52,0.19269919]
[1693500427522,0.83902378,219.34,218.52,0.19269919]
[1693500427721,0.83902378,219.33,218.52,0.19269919]
[1693500428015,0.83902378,219.32,218.52,0.2670658]
[1693500428521,0.83902378,219.31,218.56,0.07436661]
[1693500428819,0.83902378,219.3,218.57,0.19269919]
[1693500429120,0.83902378,219.29,218.57,0.19269919]